Cogmind - Beta 13 @@@ ROGUE MODE // 2024.04.27 @ 15:39:36 Player: dp-fld Result: Self-destructed Performance ------------- Evolutions (2) 1000 Regions Visited (6) 1200 Robots Destroyed (85) 425 Value Destroyed (3058) 3058 Prototype IDs (28) 560 Alien Tech Used (0) 0 Bonus (1933) 1933 TOTAL SCORE: 8176 Bonus ------- High Alert Combat Kills 908 Follower Combat Kills 25 Entered Garrisons 200 Used RIF Installer 500 Aligned with FarCom 300 Cogmind --------- Core Integrity 149/550 Matter 300/300 Energy 140/140 System Corruption 0% Temperature Cool (0) Movement Treading (155) Location -8/Garrison Parts ------- > --- POWER (1) -------- Light Deuterium Engine > --- PROPULSION (3) --- Light Treads Advanced Treads Medium Treads > --- UTILITY (4) ------ High-capacity Storage Unit Advanced Targeting Computer Core Shielding Improved Light Armor Plating > --- WEAPON (3) ------- EM Pulse Cannon Enhanced Autogun Chainsword > --- INVENTORY (20) --- Light Nuclear Core Fission Core Light Fission Core Light Fission Core Light Treads Combat Airjet Combat Airjet Combat Airjet Combat Airjet Combat Airjet Improved Heat Sink Improved Heat Sink Cooling System High-capacity Matter Pod (200) Improved Light Armor Plating Tractor Beam Heavy Assault Rifle Chainsword Peak State ------------ > --- POWER ------------ Light Nuclear Core > --- PROPULSION ------- Medium Treads Medium Treads Medium Treads > --- UTILITY ---------- High-capacity Storage Unit Advanced Targeting Computer Improved Medium Armor Plating Tractor Beam > --- WEAPON ----------- AWS/Gauss Chainsword > --- INVENTORY -------- Light Nuclear Core Light Nuclear Core Fission Core Light Fission Core Light Fission Core Advanced Treads Improved Heat Sink Improved Heat Sink Cooling System High-capacity Matter Pod Advanced Visual Processing Unit Core Analyzer Core Analyzer Core Shielding EM Pulse Cannon Improved Assault Rifle Enhanced Autogun Improved Grenade Launcher Chainsword [Rating: 50] Favorites ----------- Power Improved Ion Engine Engine Improved Ion Engine Power Core Nuclear Core Propulsion Medium Treads Treads Medium Treads Leg Aluminum Leg Utility High-capacity Storage Unit Device Seismic Detector Storage High-capacity Storage Unit Processor Advanced Targeting Computer Protection Improved Medium Armor Plating Weapon Flak Gun Energy Gun Spread Laser Energy Cannon Heavy Particle Cannon Ballistic Gun Flak Gun Launcher Improved Grenade Launcher Impact Weapon Heavy Hammer Slashing Weapon Chainsword Build | -11 -10 -10 -10 -9 -8 -8 ------- Run | Yrd Mat Min Exi Min Mat Gar Slots Evolved 4 | . . . . . 4 . Power . | . . . . . . . Propulsion 1 | . . . . . 1 . Utility 2 | . . . . . 2 . Weapon 1 | . . . . . 1 . Parts Attached 84 | . 10 4 3 2 48 17 Power 6 | . 2 . . . 2 2 Engine 4 | . 2 . . . 1 1 Core 2 | . . . . . 1 1 Reactor . | . . . . . . . Propulsion 21 | . 5 . 2 . 11 3 Treads 16 | . . . 2 . 11 3 Leg 5 | . 5 . . . . . Wheel . | . . . . . . . Hover . | . . . . . . . Flight . | . . . . . . . Utility 20 | . 1 . 1 2 14 2 Device 9 | . 1 . . 1 7 . Storage 3 | . . . 1 1 1 . Processor 1 | . . . . . 1 . Hackware . | . . . . . . . Protection 7 | . . . . . 5 2 Artifact . | . . . . . . . Weapon 37 | . 2 4 . . 21 10 Energy Gun 1 | . 1 . . . . . Energy Cannon 6 | . . . . . 4 2 Ballistic Gun 15 | . 1 3 . . 8 3 Ballistic Cannon . | . . . . . . . Launcher 9 | . . 1 . . 5 3 Special Weapon . | . . . . . . . Impact Weapon 2 | . . . . . 2 . Slashing Weapon 4 | . . . . . 2 2 Piercing Weapon . | . . . . . . . Special Melee Weapon . | . . . . . . . Unidentified Prototypes . | . . . . . . . Parts Lost 10 | . . . . . 4 6 Power . | . . . . . . . Propulsion 4 | . . . . . 1 3 Utility 1 | . . . . . 1 . Weapon 5 | . . . . . 2 3 Highest Loss Streak 3 | . . . . . 2 3 To Critical Strikes . | . . . . . . . Average Slot Usage (%) 97 | . 95 100 100 100 96 94 Engine 8 | . 14 14 14 14 5 3 Core 2 | . . . . . 3 5 Treads 19 | . . . 13 28 26 26 Leg 7 | . 28 28 14 . . . Device 10 | . 9 14 14 4 12 5 Storage 13 | . 14 14 14 23 12 9 Processor 2 | . . . . . 3 9 Protection 4 | . . . . . 5 12 Energy Cannon 2 | . . . . . 4 . Ballistic Gun 17 | . 26 24 14 14 17 13 Launcher 5 | . . 3 14 14 2 2 Slashing Weapon 1 | . . . . . . 6 Naked Turns . | . . . . . . . Heaviest Build 76 | 11 18 23 58 61 76 69 Greatest Support 84 | 20 20 20 40 40 84 84 Greatest Overweight (x) 1 | . . 1 1 1 1 1 Average Overweight (x) . | . . . . 1 . . Largest Inventory Capacity 20 | 8 8 8 20 20 20 20 Average Capacity 16 | 8 8 8 11 20 20 20 Most Carried 20 | 6 8 8 13 18 20 20 Average Carried 15 | 6 7 7 8 14 19 19 Final Capacity 20 | 8 8 8 20 20 20 20 Final Carried 20 | 6 8 8 13 18 20 18 Class Distribution -------------------- 55% | Mutant 39% | Skirmisher Dominant Class ---------------- Mutant | -10/Materials Mutant | -10/Mines Mutant | -10/Exiles Mutant | -9/Mines Skirmisher | -8/Materials Mutant | -8/Garrison Resources | -11 -10 -10 -10 -9 -8 -8 ----------- Run | Yrd Mat Min Exi Min Mat Gar Matter Collected 2481 | 178 94 194 60 53 1255 647 Remotely 766 | . . . . . 228 538 Salvage Created 2839 | . 97 69 . 39 1513 1121 Parts 180 | . 6 12 . . 97 65 Haulers Intercepted . | . . . . . . . Recyclers Shooed 1 | . . . . . 1 . Parts Field Recycled . | . . . . . . . Retrieved Matter . | . . . . . . . Parts Self-Destructed . | . . . . . . . Prevented . | . . . . . . . Kills | -11 -10 -10 -10 -9 -8 -8 ------- Run | Yrd Mat Min Exi Min Mat Gar Combat Hostiles Destroyed 76 | . 2 6 . 1 40 27 Guns 43 | . 2 6 . 1 21 13 Cannons 8 | . . . . . 7 1 AOE 25 | . . . . . 12 13 Classes Destroyed 13 | . 1 1 . 1 9 1 Worker 4 | . . . . . 4 . Builder 1 | . . . . . 1 . Recycler 1 | . . . . . 1 . Watcher 4 | . . . . . 4 . Swarmer 20 | . . 6 . . 7 7 Grunt 28 | . 2 . . . 22 4 Brawler 2 | . . . . . 1 1 Duelist 6 | . . . . 1 1 4 Sentry 12 | . . . . . 5 7 Specialist 2 | . . . . . 2 . Hunter 3 | . . . . . 1 2 Heavy 1 | . . . . . 1 . Behemoth 2 | . . . . . . 2 Best Kill Streak 8 | . 2 3 . 1 8 6 Combat Bots Only 6 | . 2 3 . 1 6 6 Max Kills in Single Turn 6 | . 1 1 . 1 6 4 Gunslinging . | . . . . . . . Exploded 4 | . . . . . 4 3 Melee . | . . . . . . . Uniques/NPCs Destroyed . | . . . . . . . Combat | -11 -10 -10 -10 -9 -8 -8 -------- Run | Yrd Mat Min Exi Min Mat Gar Hostile Shots Fired 267 | . 8 34 . . 132 93 Missed 84 | . 2 16 . . 31 35 Damage Taken 3412 | . 85 145 . . 1990 1192 Core 454 | . 26 27 . . 256 145 Absorbed by Shields 28 | . . . . . 28 . Redirected to Shielding 9 | . . . . . . 9 Core Remaining (%) 89 | 100 . . . 78 . . Volleys Fired 135 | 2 9 14 . 1 88 21 Largest 3 | 2 2 2 . 1 3 3 Hottest 171 | 40 40 56 . 33 171 94 Shots Fired 354 | 4 18 24 . 1 211 96 Gun 272 | 4 18 24 . 1 149 76 Cannon 51 | . . . . . 47 4 Launcher 31 | . . . . . 15 16 Special . | . . . . . . . Kinetic 272 | 4 18 24 . 1 149 76 Thermal 39 | . . . . . 39 . Explosive 31 | . . . . . 15 16 Electromagnetic 12 | . . . . . 8 4 Robot Hit Streak 30 | 4 6 2 . 1 13 30 Robot Miss Streak 9 | . 2 5 . . 9 3 Penetration Max . | . . . . . . . Secondary Targets 5 | . . 2 . . 3 . Max Gunslinging Chain 1 | . . 1 . . 1 . Autonomous 51 | . . . . . . 51 Shots Hit Robots 257 | 4 12 8 . 1 149 83 Core Hits 224 | . 5 6 . 1 157 55 Critical Kills . | . . . . . . . Critical Parts Destroyed . | . . . . . . . Critical Strikes 1 | . . . . . . 1 Sever 1 | . . . . . . 1 Melee Attacks 43 | . . . . . 10 33 Impact 2 | . . . . . 2 . Slashing 41 | . . . . . 8 33 Piercing . | . . . . . . . Sneak Attacks . | . . . . . . . Combat Hostiles . | . . . . . . . Follow-up Attacks . | . . . . . . . Damage Inflicted 8066 | 41 123 123 . 27 4436 3316 Guns 4032 | 41 122 119 . 27 2179 1544 Cannons 824 | . . . . . 759 65 Explosions 2597 | . . . . . 1394 1203 Melee 585 | . . . . . 81 504 Ramming 28 | . 1 4 . . 23 . Kinetic 4032 | 41 122 119 . 27 2179 1544 Thermal 671 | . . . . . 620 51 Explosive 2437 | . . . . . 1285 1152 Electromagnetic 313 | . . . . . 248 65 Impact . | . . . . . . . Slashing 585 | . . . . . 81 504 Piercing . | . . . . . . . Highest Corruption . | . . . . . . . Average Corruption . | . . . . . . . Corruption Purged . | . . . . . . . Corruption Blocked . | . . . . . . . Overload Shots . | . . . . . . . Overflow Damage 107 | . . . . . 44 63 Projectiles 3 | . . . . . . 3 Explosions 37 | . . . . . 20 17 Melee 67 | . . . . . 24 43 Knockbacks 1 | . . . . . 1 . Impact 1 | . . . . . 1 . Kinetic . | . . . . . . . Secondary . | . . . . . . . Self-Inflicted Damage 297 | . . . . . 54 243 Shots 7 | . . . . . 1 6 Rammed 2 | . . . . . 2 . Targets Rammed 4 | . 1 1 . . 2 . Kicked 2 | . 1 1 . . . . Crushed . | . . . . . . . Highest Temperature 326 | . 18 . . . 326 245 Average Temperature 87 | . 11 . . . 91 77 Received Heat Transfer 876 | . 51 . . . 648 177 Siege Activations . | . . . . . . . Robots Corrupted . | . . . . . . . Combat Hostiles . | . . . . . . . Parts Fried 1 | . . . . . 1 . Impact Corruptions . | . . . . . . . Robots Melted . | . . . . . . . Combat Hostiles . | . . . . . . . Parts Melted . | . . . . . . . Heat Transferred 901 | . . . . . 901 . Parts Sabotaged . | . . . . . . . Parts Stolen . | . . . . . . . Parts Stripped . | . . . . . . . Power Chain Reactions 2 | . . . . . 1 1 Alert | -11 -10 -10 -10 -9 -8 -8 ------- Run | Yrd Mat Min Exi Min Mat Gar Peak Influence 1540 | . 96 88 . 56 916 1540 Initial 598 | . . 7 . . 21 598 Average 367 | . 42 61 . 9 350 974 Maximum Alert Level 4 | . . . . . 3 4 Low Security (%) 47 | 100 100 100 . 100 30 . Level 1 18 | . . . . . 38 . Level 2 11 | . . . . . 10 33 Level 3 13 | . . . . . 20 17 Level 4 9 | . . . . . . 48 Level 5 . | . . . . . . . High Security . | . . . . . . . Max Security . | . . . . . . . Squads Dispatched 13 | . 3 1 . . 9 . Investigation 2 | . . 1 . . 1 . Extermination . | . . . . . . . Reinforcement 7 | . 3 . . . 4 . Assault 1 | . . . . . 1 . Garrison 3 | . . . . . 3 . Intercept . | . . . . . . . Searches Triggered . | . . . . . . . Construction Impeded 1 | . . . . . 1 . Haulers Reinforced . | . . . . . . . Active Scanning Responses . | . . . . . . . Cargo Convoy Interrupts . | . . . . . . . Stealth | -11 -10 -10 -10 -9 -8 -8 --------- Run | Yrd Mat Min Exi Min Mat Gar Distress Signals 8 | . . . . . 8 . Communications Jammed . | . . . . . . . Distress Signals . | . . . . . . . Times Spotted 110 | . 11 7 . 2 65 25 Peak Tracking Total 8 | . 4 3 . 2 8 6 Tactical Retreats 4 | . . . . . 2 2 Traps | -11 -10 -10 -10 -9 -8 -8 ------- Run | Yrd Mat Min Exi Min Mat Gar Traps Triggered 4 | . . . . . 2 2 Indirectly . | . . . . . . . Trap Hack Attempts . | . . . . . . . Triggered . | . . . . . . . Disarmed . | . . . . . . . Reprogrammed . | . . . . . . . Reused . | . . . . . . . Traps Extracted . | . . . . . . . Installed 5 | . . 5 . . . . Triggered . | . . . . . . . Machines | -11 -10 -10 -10 -9 -8 -8 ---------- Run | Yrd Mat Min Exi Min Mat Gar Machines Disabled 9 | . . . . . 7 2 Max in Single Turn 2 | . . . . . 2 2 Machines Repaired . | . . . . . . . Machines Dismantled . | . . . . . . . Machines Sabotaged . | . . . . . . . Overloaded Fab Kills . | . . . . . . . Hacking | -11 -10 -10 -10 -9 -8 -8 --------- Run | Yrd Mat Min Exi Min Mat Gar Machines Accessed 16 | . 3 1 3 . 7 2 Terminals 9 | . 3 . . . 4 2 Fabricators . | . . . . . . . Repair Stations . | . . . . . . . Recycling Units . | . . . . . . . Scanalyzers 2 | . . . . . 2 . Garrison Access 1 | . . . . . 1 . Total Hacks 45 | . 11 1 18 . 10 5 Successful 28 | . 5 1 18 . 3 1 Failed 17 | . 6 . . . 7 4 Catastrophic 4 | . 2 . . . 1 1 Database Lockouts . | . . . . . . . Manual 18 | . 7 . 1 . 8 2 Terminals 23 | . 11 . . . 7 5 Fabricators . | . . . . . . . Repair Stations . | . . . . . . . Recycling Units . | . . . . . . . Scanalyzers 2 | . . . . . 2 . Garrison Access 1 | . . . . . 1 . Terminal Hacks 24 | . 4 1 18 . . 1 Record 17 | . . . 17 . . . Prototype ID Bank 2 | . 2 . . . . . Open Door 1 | . . 1 . . . . Terminal Index 1 | . 1 . . . . . Recall Reinforcements 1 | . 1 . . . . . Garrison Registry 1 | . . . . . . 1 Derelict Proto ID Bank 1 | . . . 1 . . . Fabricator Hacks . | . . . . . . . Repair Station Hacks . | . . . . . . . Recycling Unit Hacks . | . . . . . . . Scanalyzer 2 | . . . . . 2 . Insert Component 2 | . . . . . 2 . Garrison Access Hacks 1 | . . . . . 1 . Unlock Access 1 | . . . . . 1 . Unauthorized Hacks 1 | . 1 . . . . . Terminals 1 | . 1 . . . . . Botnet 1 | . 1 . . . . . Fabricators . | . . . . . . . Repair Stations . | . . . . . . . Recycling Units . | . . . . . . . Scanalyzers . | . . . . . . . Garrison Access . | . . . . . . . Data Cores Recovered . | . . . . . . . Used . | . . . . . . . Hacking Detections 10 | . 3 . . . 5 2 Full Trace Events 3 | . 1 . . . . 2 Feedback Events . | . . . . . . . Feedback Blocked . | . . . . . . . Robot Schematics Acquired . | . . . . . . . Robots Built . | . . . . . . . Authchips . | . . . . . . . Time . | . . . . . . . Total Robot Build Rating . | . . . . . . . Part Schematics Acquired . | . . . . . . . Parts Built . | . . . . . . . Authchips . | . . . . . . . Time . | . . . . . . . Total Part Build Rating . | . . . . . . . Parts Repaired . | . . . . . . . Time . | . . . . . . . Parts Recycled . | . . . . . . . Recycled Matter . | . . . . . . . Retrieved Matter . | . . . . . . . Retrieved Components . | . . . . . . . Parts Scanalyzed . | . . . . . . . Part Schematics Acquired . | . . . . . . . Parts Damaged . | . . . . . . . Bothacking | -11 -10 -10 -10 -9 -8 -8 ------------ Run | Yrd Mat Min Exi Min Mat Gar Used RIF Installer 1 | . . . . . . 1 Robots Hacked . | . . . . . . . Non-combat . | . . . . . . . Combat . | . . . . . . . Robot Hacks Applied . | . . . . . . . Relay Couplers Released . | . . . . . . . Fabnet Peak Effective % . | . . . . . . . Robots Rewired . | . . . . . . . Allies Hacked . | . . . . . . . Hacks Repelled . | . . . . . . . Allies | -11 -10 -10 -10 -9 -8 -8 -------- Run | Yrd Mat Min Exi Min Mat Gar Total Allies 2 | . . . . 2 . . Largest Group 2 | . . . . 2 2 . Highest-Rated Group 42 | . . . . 42 37 . Highest-Rated Ally 31 | . . . . 31 26 . Total Orders . | . . . . . . . Ally Attacks 16 | . . . . 10 6 . Total Damage 231 | . . . . 167 64 . Kills 1 | . . . . 1 . . Allies Corrupted . | . . . . . . . Allies Melted . | . . . . . . . Intel | -11 -10 -10 -10 -9 -8 -8 ------- Run | Yrd Mat Min Exi Min Mat Gar Robot Analysis Total . | . . . . . . . Derelict Logs Recovered 3 | . . 1 . 2 . . Drone Launches . | . . . . . . . Drone Recoveries . | . . . . . . . Exploration | -11 -10 -10 -10 -9 -8 -8 ------------- Run | Yrd Mat Min Exi Min Mat Gar Turns Passed 7839 | 20 584 778 1361 728 3129 1239 Spaces Moved 3925 | 13 419 535 684 295 1330 649 Core . | . . . . . . . Treads 2592 | . . . 318 295 1330 649 Legs 1333 | 13 419 535 366 . . . Wheels . | . . . . . . . Hover . | . . . . . . . Flight . | . . . . . . . Fastest Speed 120 | 120 120 120 160 240 155 155 Average Speed 174 | 120 120 134 197 240 189 162 Slowest Speed 240 | 120 120 190 240 240 240 232 Overloaded Moves . | . . . . . . . Propulsion Burnouts . | . . . . . . . Robots Hopped . | . . . . . . . Cave-ins Triggered . | . . . . . . . Exploration Rate (%) 66 | 3 62 96 92 75 79 59 Regions Visited 6 Branch Regions 3 Pre-discovered Areas . | . . . . . . . Known Exits Taken 1 | . . . . . 1 . Unknown Exits Taken 5 | 1 1 1 1 1 . . Scrap Searched 5 | . . 3 . 2 . . Spaces Dug 37 | . . . . . 19 18 Terrain Destroyed 279 | . . 3 . . 178 98 Melee 18 | . . . . . 5 13 Projectile 19 | . . 3 . . 14 2 AOE 242 | . . . . . 159 83 Terrain Rammed . | . . . . . . . Walls Destroyed . | . . . . . . . Machines Disabled . | . . . . . . . Actions | -11 -10 -10 -10 -9 -8 -8 --------- Run | Yrd Mat Min Exi Min Mat Gar Total 4601 | 14 486 572 695 314 1767 753 Wait 278 | . 28 3 . 12 224 11 Move 3920 | 12 418 534 683 294 1330 649 Hop . | . . . . . . . Pick Up 65 | . 9 5 6 5 30 10 Fast Attach 12 | . 2 . . . 8 2 Attach 16 | . . . . . 8 8 Detach 3 | . . . . . 1 2 Swap 56 | . 8 4 3 2 32 7 Drop 64 | . 11 6 3 . 34 10 Fire 135 | 2 9 14 . 1 88 21 Melee 43 | . . . . . 10 33 Ram . | . . . . . . . Kick 2 | . 1 1 . . . . Crush 2 | . . . . . 2 . Escape Stasis . | . . . . . . . Rewire . | . . . . . . . Trap 5 | . . 5 . . . . Miscellaneous . | . . . . . . . Route ------- -11/Scrapyard -10/Materials (discovered 3 exits: [*Mat x2] / *Min) -10/Mines (discovered 3 exits: [*Mat] / *Exi / [*Sub]) -10/Exiles (discovered 2 exits: [*Min x2]) -9/Mines -8/Materials (discovered 5 exits: *Fac x3 / Sto / Gar) -8/Garrison (discovered 3 exits: *Fac x3) History --------- Turn | Location | Event 1 | -11/Scrapyard | Discovered new exit (range 3) 21 | -11/Scrapyard | Entered Materials 225 | -10/Materials | Discovered new exit (range 15) 308 | -10/Materials | Build established: Mutant 316 | -10/Materials | Discovered new exit (range 5) 542 | -10/Materials | Discovered new exit (range 5) 605 | -10/Materials | Entered Mines 638 | -10/Mines | Met a Derelict bent on vengeance 825 | -10/Mines | A weapon hastily lodged in a ceiling crevice suddenly fell to the ground 920 | -10/Mines | Discovered new exit (range 9) 976 | -10/Mines | Found a hidden stash of uninstalled traps 1069 | -10/Mines | Discovered new exit (range 6) 1150 | -10/Mines | Met a Derelict shopkeep closing up shop 1376 | -10/Mines | Deemed a non-threat by the Exiles lab entrance 1376 | -10/Mines | Discovered new exit (range 5) 1383 | -10/Mines | Entered Exiles 1414 | -10/Exiles | Discovered new exit (range 15) 1435 | -10/Exiles | Met 8R-AWN 1459 | -10/Exiles | Met EX-HEX 1534 | -10/Exiles | Met EX-DEC 1675 | -10/Exiles | Visited The Gauntlet 1965 | -10/Exiles | Met EX-BIN 2007 | -10/Exiles | Aligned with FarCom system 2009 | -10/Exiles | Given EX-Vault access code 2062 | -10/Exiles | Opened EX-Vault 2083 | -10/Exiles | Found AWS/Gauss 2192 | -10/Exiles | Warned to stay clear of 0b10 Research branches 2395 | -10/Exiles | Discovered new exit (range 12) 2744 | -10/Exiles | Left Exiles lab with AWS/Gauss 2744 | -10/Exiles | Entered Mines 2799 | -9/Mines | Learned location of 1 exit from Materials 3440 | -9/Mines | Discovered new exit (range 8) 3472 | -9/Mines | Entered Materials 3472 | -8/Materials | Accompanied by 2 allies 3472 | -8/Materials | Evolved 4 slots: Propulsion x1, Utility x2, Weapon x1 3473 | -8/Materials | Identified exit to Storage 3474 | -8/Materials | Identified exit to Factory 3477 | -8/Materials | Led the pair of lost Derelicts to an unsafe place 3978 | -8/Materials | Build established: Skirmisher 4514 | -8/Materials | Garrison activated, responded to threat 5043 | -8/Materials | Discovered exit to Factory (range 10) 5658 | -8/Materials | Discovered exit to Factory (range 10) 5872 | -8/Materials | First assault squad dispatched 6601 | -8/Materials | Identified exit to Garrison 6601 | -8/Materials | Entered Garrison 6876 | -8/Garrison | Build established: Mutant 7002 | -8/Garrison | Triggered checkpoint 7067 | -8/Garrison | Triggered checkpoint 7127 | -8/Garrison | Triggered checkpoint 7201 | -8/Garrison | Core integrity fell below 50% 7239 | -8/Garrison | Lost 3 parts (1n2w) 7291 | -8/Garrison | Build established: Skirmisher 7323 | -8/Garrison | Discovered exit to Factory (range 10) 7570 | -8/Garrison | Discovered exit to Factory (range 21) 7570 | -8/Garrison | Discovered exit to Factory (range 36) 7570 | -8/Garrison | Discovered exit to Factory (range 63) 7580 | -8/Garrison | Spotted B-75 Beast 7580 | -8/Garrison | Spotted B-75 Beast 7621 | -8/Garrison | Destroyed B-75 Beast 7644 | -8/Garrison | Destroyed B-75 Beast 7672 | -8/Garrison | Lost 3 parts (2n1w) 7713 | -8/Garrison | Triggered checkpoint 7810 | -8/Garrison | Installed Relay Interface Framework 7840 | -8/Garrison | Self-destructed Last Messages --------------- 07714_ Acquired Lgt. Treads. 07741_ Slug penetrates Y-45 Defender. 07741_ Y-45 Defender destroyed. 07760_ Slug penetrates Y-45 Defender. 07760_ Slug penetrates Wall. 07762_ Slug penetrates Y-45 Defender. 07763_ AWS/Gauss suddenly breaks down. 07765_ Dropped Broken AWS/Gauss. 07767_ Acquired Broken AWS/Gauss. 07769_ Dropped Broken AWS/Gauss. 07769_ Acquired 10 matter. 07776_ Critical hit (Burn: +37). 07779_ Y-45 Defender destroyed. 07783_ Acquired 28 matter. 07789_ Acquired Hvy. Assault Rifle. 07801_ ALERT: Garrison interior compromised. 07804_ Triggered Alarm Trap. 07804_ An alarm sounds. Initiating installation procedure... 07810_ Relay Interface Framework installed. Map ----- +----------------------------------------------------+ | ??????????????????????????????????????????????? | | ??????????????????????????????????????????????? | | ??????????????????????????????????????????????? | | ??????????????????????????????????????????????? | | ??????????????????????????????????????????????? | | ??????????????????????????????????????????????? | | ??????????????????????????????????????????????? | | ??????????????????????????????????????????????? | | ??????????????????????????????????????????????? | | ??????????????????????????????????????????????? | | ??????????????????????????????????????????????? | | ??????????????????????????????????????????????? | | ??????????????????????????????????????????????? | | ??????????????????????????????????????????????? | | ??????????????????????????????????????????????? | | ??????????????????????????????????######??????? | | ??????????????????#####???####????# #??????? | | ??????????????????#!!!##### #????# < #??????# | | ??????????????????#! + #????# #??????# | | ??????????????????#!!!### ####????### #??????# | | ??????????????????#####?# #?????????# #??????# | | ????????????????????????# #?????????# #??????# | | ????????????????????????# #?????????# #??????# | | ?????????????????????####+########### #??????# | | ?????????????????????# ######## | | ?????????????????????#@##+#T### ##### + | | ?????????????????????#=# ###?# #???# # | | ?????????????????????#=##!#???# #???##+##### # | | ?????????????????????#!##%##### #????# #???# # | | ???????????????????###![%=! #????# #???# # | | ???????????????????#!%*##########????# #???# # | | ???????????????????# * #?????????????# #???# # | | ???????????????????# =#?????????????# #???# # | | ???????????????????### #?????????????# #???# # | | ???????????#######???# ###???????????# #??##^^# | | ???????????#""""^##### #"#???????????# #### | | ???????????#" "#???????????# | | ???????????#""""^##### "#???????????##### | | ???????????#######???# "#??????????????# # | | ?????????????????????# #"#??????????????### | | ?????????????????????#;###??????????????# %* | | ?????????????????????# #????????????????# = | | ?????????????????????##########?????????#%! | | ?????????????????????# [#?????????#[ | | ?????????????????????# [#?????????### # | | ?????????????????????# ############ [!# | | ?????????????????????# ]%! =% | | ?????????????????????# *= + * | | ?????????????????????#!!! !!!##### ## # | | ?????????????????????#########???# ####### | +----------------------------------------------------+ Best States ------------- Heat Dissipation 59 Energy Generation 14 Energy Capacity 265 Matter Stores 500 Matter Capacity 500 Sight Range 16 Robot Scan Range 14 Terrain Scan Range 14 Terrain Scan Density 10 Armor Coverage 600 Core Shielding 20 Evasion (%) 55 Targeting Accuracy 8 Recoil Reduction 3 Item Schematics ----------------- None Robot Schematics ------------------ None Fabricated ------------ Nothing Alien Tech Used ----------------- None Achievements -------------- None Challenges ------------ None Game ------ Seed SniperMeleeThrower Manual? 0 Play Time 01:06:43 Cumulative 334.9 hours Start 2024.04.27 @ 14:06:28 End 2024.04.27 @ 15:39:36 Sessions 3 Manual Loads 0 Difficulty Rogue Special Mode None Game No. 111 Rogue 72 Adventurer 0 Explorer 39 Win Type - Total 11 Types 9/1/1/0/0/0/0/0/0 Lore% 68 Gallery% 75 Achievement% 67 Wizard Run 0 Options --------- Layout 0 ASCII 1 Keyboard 1 Movement Arrows Keybinds 0 Fullscreen 2 Font 36/Smallcaps Map View 76x50 Zoom Use 0% Tactical HUD 1 Map Filters NONE Filters NONE Steam 1 RUN: 9deba9c9-0ce4-4d21-b09f-fcf441417843